{"text_format":"3","workbook":"xlsx","n_sheets":8,"sheets":["הוראות","קבועים בשגרה","מכרים מזדמנים","קשרים פוטנציאליים","תוכנית עבודה ברשת של Q1","תוכנית עבודה ברשת של Q2","תוכנית עבודה ברשת של Q3","תוכנית עבודה ברשת של Q4"],"not_rendered":{"defined_names":7},"read":"whole","date_system":"1900"}

{"sheet":"הוראות","index":0,"n_rows":17,"n_cols":5,"rows_kept":17,"merged":[[0,0,0,2],[1,1,1,6],[2,1,2,6],[3,1,3,6],[4,1,4,6],[5,1,5,6],[6,1,6,6],[7,1,7,6],[8,1,8,6],[9,1,9,6],[10,1,10,6],[11,1,11,6]]}
["מעקב אחר יצירת קשר",null,null,"הוראות"]
[null,"1. קבע לאילו קטגוריה מתאים איש הקשר שלך:"]
[null,"• קבועים בשגרה - אנשים שאיתם ברצונך לשמור על קשר באופן קבוע מאוד"]
[null,"• מכרים מזדמנים - אנשים שאיתם ברצונך להיות בקשר כמה פעמים בשנה"]
[null,"• קשרים פוטנציאליים - אנשים/חברות שברצונך לשמור רשומים כדי ליצור קשר כאשר יגיע הזמן"]
[null,"2. פתח את לשונית גיליון העבודה המתאימה."]
[null,"3. הזן את הפרטים שלהם (כדי ליצור שורה חדשה בתא, הקש Alt+Enter ב- Windows או Option+Return ב- Mac)."]
[null,"בדוק כאן לקבלת הוראות שורה חדשות עבור אפליקציות Excel למכשירים ניידים."]
[null,"4. בעמודה תאריך להמשך טיפול, מחק תאריך/נוסחה לדוגמה, הזן מתי ברצונך ליצור איתם קשר, \nולאחר מכן הקש Enter."]
[null,"5. העמודה תאריך להמשך טיפול תופיע באדום כאשר התאריך קרוב מאוד, צהוב כאשר הוא מתקרב \nוירוק כשיש לך זמן רב."]
[null,"6. ככל שהתאריך להמשך טיפול מתקרב, הצבע ישתנה בהתאם."]
[null,"7. לאחר שיצרת קשר עם איש הקשר שלך, הקלד 'כן' בעמודה בוצע?. פעולה זו תצבע את התאריך באפור. "]
[null,"8. אם ברצונך ליצור איתם קשר שוב, החלף את ’כן’ ב’לא’ והקלד תאריך להמשך טיפול חדש."]
[null,null,"אדום","צהוב","ירוק"]
[null,"קבועים בשגרה","בעוד 1-3 ימים","בעוד 4-7 ימים","בעוד 8-14 ימים ומעלה"]
[null,"מכרים מזדמנים","בעוד 1-7 ימים","בעוד 8-45 ימים","בעוד 46-90 ימים ומעלה"]
[null,"קשרים פוטנציאליים","בעוד 1-14 ימים","בעוד 15-60 ימים","בעוד של 60-120 ימים ומעלה"]

{"sheet":"קבועים בשגרה","index":1,"n_rows":7,"n_cols":8,"rows_kept":7,"merged":[[0,0,0,2]]}
["מעקב אחר יצירת קשר",null,null,"קבועים בשגרה"]
[]
["שם","חברה","פרטי קשר","היכן כרנו","הערות","תאריך להמשך טיפול","בוצע","הערות מהשיחה"]
["Garth Fort","Adventure Works","מנהל פרויקט\ngarth@adventure-works.com\n555-0134 (234)\nadventure-works.com\nlinkedin.com/in/garth-fort","הצגת מסחר 2010","שאל לגבי הבת סיגל ואיך מתקדם השיפוץ. לא מחבב קבוצות גדולות ואוכל פיקנטי.",{"$f":"TODAY()+8","v":"2021-07-24"},"לא"]
["שם","שם החברה","תפקיד\nכתובת דואר אלקטרוני\nמספר טלפון\nאתר אינטרנט\nקישורים לפרופיל חברתי\n","מיקום","רשום הערות שברצונך לזכור לגבי אדם זה; היכן נפגשתם, על מה דיברתם, אילו נושאים ברצונך להעלות בפעם הבאה שתשוחחו וכו’.",{"$f":"TODAY()-3","v":"2021-07-13"},"כן"]
["שם","שם החברה","תפקיד\nכתובת דואר אלקטרוני\nמספר טלפון\nאתר אינטרנט\nקישורים לפרופיל חברתי\n","מיקום","רשום הערות שברצונך לזכור לגבי אדם זה; היכן נפגשתם, על מה דיברתם, אילו נושאים ברצונך להעלות בפעם הבאה שתשוחחו וכו’.",{"$f":"TODAY()+-3","v":"2021-07-13"},"לא"]
["שם","שם החברה","תפקיד\nכתובת דואר אלקטרוני\nמספר טלפון\nאתר אינטרנט\nקישורים לפרופיל חברתי\n","מיקום","רשום הערות שברצונך לזכור לגבי אדם זה; היכן נפגשתם, על מה דיברתם, אילו נושאים ברצונך להעלות בפעם הבאה שתשוחחו וכו’.",{"$f":"TODAY()+6","v":"2021-07-22"},"לא"]

{"sheet":"מכרים מזדמנים","index":2,"n_rows":7,"n_cols":8,"rows_kept":7,"merged":[[0,0,0,2]]}
["מעקב אחר יצירת קשר",null,null,"מכרים מזדמנים"]
[]
["שם","חברה","פרטי קשר","היכן כרנו","הערות","תאריך להמשך טיפול","בוצע","הערות מהשיחה"]
["Garth Fort","Adventure Works","מנהל הקצאת משאבים\ngarth@adventure-works.com\n555-0123 (434)\nwww.adventure-works.com\nlinkedin.com/in/garth-fort","חופשה בוורמונט 2016","שימושי להעסקת איש קשר וכן לשאלות שיווקיות",{"$f":"TODAY()+90","v":"2021-10-14"},"לא"]
["שם","שם החברה","תפקיד\nכתובת דואר אלקטרוני\nמספר טלפון\nאתר אינטרנט\nקישורים לפרופיל חברתי\n","מיקום","רשום הערות שברצונך לזכור לגבי אדם זה; היכן נפגשתם, על מה דיברתם, אילו נושאים ברצונך להעלות בפעם הבאה שתשוחחו וכו’.",{"$f":"TODAY()-3","v":"2021-07-13"},"כן"]
["שם","שם החברה","תפקיד\nכתובת דואר אלקטרוני\nמספר טלפון\nאתר אינטרנט\nקישורים לפרופיל חברתי\n","מיקום","רשום הערות שברצונך לזכור לגבי אדם זה; היכן נפגשתם, על מה דיברתם, אילו נושאים ברצונך להעלות בפעם הבאה שתשוחחו וכו’.",{"$f":"TODAY()+-3","v":"2021-07-13"},"לא"]
["שם","שם החברה","תפקיד\nכתובת דואר אלקטרוני\nמספר טלפון\nאתר אינטרנט\nקישורים לפרופיל חברתי\n","מיקום","רשום הערות שברצונך לזכור לגבי אדם זה; היכן נפגשתם, על מה דיברתם, אילו נושאים ברצונך להעלות בפעם הבאה שתשוחחו וכו’.",{"$f":"TODAY()+40","v":"2021-08-25"},"לא"]

{"sheet":"קשרים פוטנציאליים","index":3,"n_rows":7,"n_cols":8,"rows_kept":7,"merged":[[0,0,0,2]]}
["מעקב אחר יצירת קשר",null,null,"קשרים פוטנציאליים"]
[]
["שם","חברה","פרטי קשר","היכן כרנו","הערות","תאריך להמשך טיפול","בוצע","הערות מהשיחה"]
["Garth Fort","פרילנסר","מעצב\nsomeone@example.com\n425-555-0123\nexample.com\nlinkedin.com/in/garth-fort","טקס סיום הלימודים של הבן 2016","דירוג אחרון - מיומן מאוד. עשוי להיות שימושי עבור לקוחות עתידיים.",{"$f":"TODAY()+89","v":"2021-10-13"},"לא"]
["שם","שם החברה","תפקיד\nכתובת דואר אלקטרוני\nמספר טלפון\nאתר אינטרנט\nקישורים לפרופיל חברתי\n","מיקום","רשום הערות שברצונך לזכור לגבי אדם זה; היכן נפגשתם, על מה דיברתם, אילו נושאים ברצונך להעלות בפעם הבאה שתשוחחו וכו’.",{"$f":"TODAY()-3","v":"2021-07-13"},"כן"]
["שם","שם החברה","תפקיד\nכתובת דואר אלקטרוני\nמספר טלפון\nאתר אינטרנט\nקישורים לפרופיל חברתי\n","מיקום","רשום הערות שברצונך לזכור לגבי אדם זה; היכן נפגשתם, על מה דיברתם, אילו נושאים ברצונך להעלות בפעם הבאה שתשוחחו וכו’.",{"$f":"TODAY()+-3","v":"2021-07-13"},"לא"]
["שם","שם החברה","תפקיד\nכתובת דואר אלקטרוני\nמספר טלפון\nאתר אינטרנט\nקישורים לפרופיל חברתי\n","מיקום","רשום הערות שברצונך לזכור לגבי אדם זה; היכן נפגשתם, על מה דיברתם, אילו נושאים ברצונך להעלות בפעם הבאה שתשוחחו וכו’.",{"$f":"TODAY()+30","v":"2021-08-15"},"לא"]

{"sheet":"תוכנית עבודה ברשת של Q1","index":4,"n_rows":20,"n_cols":6,"rows_kept":20,"merged":[[0,0,0,3],[2,0,2,3],[4,0,4,3],[14,5,17,5],[18,0,18,3]]}
["תוכנית הרחבת רשת"]
["הוראות"]
["כתוב כיצד אתה מתכנן להרחיב את הרשת שלך ברבעון זה (כלומר, לבצע יותר שיחות טלפון, לטייל יותר וכו’). לאחר מכן, בכל פעם שתקבל איש קשר חדש, שנה את מספר אנשי הקשר שנוצרו בפועל כדי לעקוב ולראות עד כמה אתה מתקרב להשגת היעדים שלך."]
[]
["כיצד אני מתכנן להרחיב את הרשת שלי ברבעון זה"]
["1. לבצע שיחות טלפון נוספות"]
["2. לטייל יותר"]
[]
[]
[]
[]
[]
[]
["יעד רבעוני של אנשי קשר","תאריך יעד","אנשי קשר רבעוניים בפועל שנוצרו","תוצאות"]
[20,{"$f":"TODAY()","v":"2021-07-16"},12,{"$f":"IF(tblGoals[[#This Row],[יעד רבעוני של אנשי קשר]]>0,tblGoals[[#This Row],[אנשי קשר רבעוניים בפועל שנוצרו]]/tblGoals[[#This Row],[יעד רבעוני של אנשי קשר]],\"\")","v":{"v":0.6,"d":"60%"}},null,"0% - 25%\n26% - 50%\n51% - 75%\n76% - 100%\n\nהצבע משתנה בהתבסס על האחוז שהושג"]
[{"$nulls":3},{"$f":"IF(tblGoals[[#This Row],[יעד רבעוני של אנשי קשר]]>0,tblGoals[[#This Row],[אנשי קשר רבעוניים בפועל שנוצרו]]/tblGoals[[#This Row],[יעד רבעוני של אנשי קשר]],\"\")","v":""}]
[{"$nulls":3},{"$f":"IF(tblGoals[[#This Row],[יעד רבעוני של אנשי קשר]]>0,tblGoals[[#This Row],[אנשי קשר רבעוניים בפועל שנוצרו]]/tblGoals[[#This Row],[יעד רבעוני של אנשי קשר]],\"\")","v":""}]
[]
["השתקפות בתוצאה / הערות לשיפור"]
["התקרב. נסה להתקשר בזמן ארוחת הצהריים במקום זאת."]

{"sheet":"תוכנית עבודה ברשת של Q2","index":5,"n_rows":20,"n_cols":6,"rows_kept":20,"merged":[[0,0,0,3],[2,0,2,3],[4,0,4,3],[14,5,17,5],[18,0,18,3]]}
["תוכנית הרחבת רשת"]
["הוראות"]
["כתוב כיצד אתה מתכנן להרחיב את הרשת שלך ברבעון זה (כלומר, לבצע יותר שיחות טלפון, לטייל יותר וכו’). לאחר מכן, בכל פעם שתקבל איש קשר חדש, שנה את מספר אנשי הקשר שנוצרו בפועל כדי לעקוב ולראות עד כמה אתה מתקרב להשגת היעדים שלך."]
[]
["כיצד אני מתכנן להרחיב את הרשת שלי ברבעון זה"]
["1. לבצע שיחות טלפון נוספות"]
["2. לטייל יותר"]
[]
[]
[]
[]
[]
[]
["יעד רבעוני של אנשי קשר","תאריך יעד","אנשי קשר רבעוניים בפועל שנוצרו","תוצאות"]
[20,{"$f":"TODAY()","v":"2021-07-16"},12,{"$f":"IF(tblGoals3[[#This Row],[יעד רבעוני של אנשי קשר]]>0,tblGoals3[[#This Row],[אנשי קשר רבעוניים בפועל שנוצרו]]/tblGoals3[[#This Row],[יעד רבעוני של אנשי קשר]],\"\")","v":{"v":0.6,"d":"60%"}},null,"0% - 25%\n26% - 50%\n51% - 75%\n76% - 100%\n\nהצבע משתנה בהתבסס על האחוז שהושג"]
[{"$nulls":3},{"$f":"IF(tblGoals3[[#This Row],[יעד רבעוני של אנשי קשר]]>0,tblGoals3[[#This Row],[אנשי קשר רבעוניים בפועל שנוצרו]]/tblGoals3[[#This Row],[יעד רבעוני של אנשי קשר]],\"\")","v":""}]
[{"$nulls":3},{"$f":"IF(tblGoals3[[#This Row],[יעד רבעוני של אנשי קשר]]>0,tblGoals3[[#This Row],[אנשי קשר רבעוניים בפועל שנוצרו]]/tblGoals3[[#This Row],[יעד רבעוני של אנשי קשר]],\"\")","v":""}]
[]
["השתקפות בתוצאה / הערות לשיפור"]
["התקרב. נסה להתקשר בזמן ארוחת הצהריים במקום זאת."]

{"sheet":"תוכנית עבודה ברשת של Q3","index":6,"n_rows":20,"n_cols":6,"rows_kept":20,"merged":[[0,0,0,3],[2,0,2,3],[4,0,4,3],[14,5,17,5],[18,0,18,3]]}
["תוכנית הרחבת רשת"]
["הוראות"]
["כתוב כיצד אתה מתכנן להרחיב את הרשת שלך ברבעון זה (כלומר, לבצע יותר שיחות טלפון, לטייל יותר וכו’). לאחר מכן, בכל פעם שתקבל איש קשר חדש, שנה את מספר אנשי הקשר שנוצרו בפועל כדי לעקוב ולראות עד כמה אתה מתקרב להשגת היעדים שלך."]
[]
["כיצד אני מתכנן להרחיב את הרשת שלי ברבעון זה"]
["1. לבצע שיחות טלפון נוספות"]
["2. לטייל יותר"]
[]
[]
[]
[]
[]
[]
["יעד רבעוני של אנשי קשר","תאריך יעד","אנשי קשר רבעוניים בפועל שנוצרו","תוצאות"]
[20,{"$f":"TODAY()","v":"2021-07-16"},12,{"$f":"IF(tblGoals34[[#This Row],[יעד רבעוני של אנשי קשר]]>0,tblGoals34[[#This Row],[אנשי קשר רבעוניים בפועל שנוצרו]]/tblGoals34[[#This Row],[יעד רבעוני של אנשי קשר]],\"\")","v":{"v":0.6,"d":"60%"}},null,"0% - 25%\n26% - 50%\n51% - 75%\n76% - 100%\n\nהצבע משתנה בהתבסס על האחוז שהושג"]
[{"$nulls":3},{"$f":"IF(tblGoals34[[#This Row],[יעד רבעוני של אנשי קשר]]>0,tblGoals34[[#This Row],[אנשי קשר רבעוניים בפועל שנוצרו]]/tblGoals34[[#This Row],[יעד רבעוני של אנשי קשר]],\"\")","v":""}]
[{"$nulls":3},{"$f":"IF(tblGoals34[[#This Row],[יעד רבעוני של אנשי קשר]]>0,tblGoals34[[#This Row],[אנשי קשר רבעוניים בפועל שנוצרו]]/tblGoals34[[#This Row],[יעד רבעוני של אנשי קשר]],\"\")","v":""}]
[]
["השתקפות בתוצאה / הערות לשיפור"]
["התקרב. נסה להתקשר בזמן ארוחת הצהריים במקום זאת."]

{"sheet":"תוכנית עבודה ברשת של Q4","index":7,"n_rows":20,"n_cols":6,"rows_kept":20,"merged":[[0,0,0,3],[2,0,2,3],[4,0,4,3],[14,5,17,5],[18,0,18,3]]}
["תוכנית הרחבת רשת"]
["הוראות"]
["כתוב כיצד אתה מתכנן להרחיב את הרשת שלך ברבעון זה (כלומר, לבצע יותר שיחות טלפון, לטייל יותר וכו’). לאחר מכן, בכל פעם שתקבל איש קשר חדש, שנה את מספר אנשי הקשר שנוצרו בפועל כדי לעקוב ולראות עד כמה אתה מתקרב להשגת היעדים שלך."]
[]
["כיצד אני מתכנן להרחיב את הרשת שלי ברבעון זה"]
["1. לבצע שיחות טלפון נוספות"]
["2. לטייל יותר"]
[]
[]
[]
[]
[]
[]
["יעד רבעוני של אנשי קשר","תאריך יעד","אנשי קשר רבעוניים בפועל שנוצרו","תוצאות"]
[20,{"$f":"TODAY()","v":"2021-07-16"},12,{"$f":"IF(tblGoals348[[#This Row],[יעד רבעוני של אנשי קשר]]>0,tblGoals348[[#This Row],[אנשי קשר רבעוניים בפועל שנוצרו]]/tblGoals348[[#This Row],[יעד רבעוני של אנשי קשר]],\"\")","v":{"v":0.6,"d":"60%"}},null,"0% - 25%\n26% - 50%\n51% - 75%\n76% - 100%\n\nהצבע משתנה בהתבסס על האחוז שהושג"]
[{"$nulls":3},{"$f":"IF(tblGoals348[[#This Row],[יעד רבעוני של אנשי קשר]]>0,tblGoals348[[#This Row],[אנשי קשר רבעוניים בפועל שנוצרו]]/tblGoals348[[#This Row],[יעד רבעוני של אנשי קשר]],\"\")","v":""}]
[{"$nulls":3},{"$f":"IF(tblGoals348[[#This Row],[יעד רבעוני של אנשי קשר]]>0,tblGoals348[[#This Row],[אנשי קשר רבעוניים בפועל שנוצרו]]/tblGoals348[[#This Row],[יעד רבעוני של אנשי קשר]],\"\")","v":""}]
[]
["השתקפות בתוצאה / הערות לשיפור"]
["התקרב. נסה להתקשר בזמן ארוחת הצהריים במקום זאת."]